Cogmind - Beta 17 @@@ ROGUE MODE // 2026.07.12 @ 19:15:21 Player: cxt100s Result: Destroyed by G-47 Trooper with Particle Gun Performance ------------- Evolutions (0) 0 Regions Visited (2) 400 Robots Destroyed (25) 125 Value Destroyed (563) 563 Prototype IDs (0) 0 Alien Tech Used (0) 0 Bonus (0) 0 TOTAL SCORE: 1088 Bonus ------- None Cogmind --------- Core Integrity 0/250 Matter 300/300 Energy 250/250 System Corruption 0% Temperature Cool (9) Movement Walking (260) Ox2 Location -10/Mines Parts ------- > --- POWER (1) -------- Ion Engine > --- PROPULSION (2) --- Aluminum Leg Aluminum Leg > --- UTILITY (2) ------ High-capacity Storage Unit Seismic Detector > --- WEAPON (2) ------- Medium Laser Assault Rifle > --- INVENTORY (20) --- Ion Engine Aluminum Leg Aluminum Leg Aluminum Leg Aluminum Leg Aluminum Leg High-capacity Storage Unit Large Matter Pod (150) Sensor Array Seismic Detector Seismic Detector Targeting Computer Light Assault Rifle Light Assault Rifle Mini Grenade Launcher Mini Grenade Launcher Mini Grenade Launcher Mini Grenade Launcher Mining Laser Peak State ------------ > --- POWER ------------ Ion Engine > --- PROPULSION ------- Aluminum Leg Aluminum Leg > --- UTILITY ---------- High-capacity Storage Unit Seismic Detector > --- WEAPON ----------- Medium Laser Assault Rifle > --- INVENTORY -------- Ion Engine Light Nuclear Core Aluminum Leg Aluminum Leg Aluminum Leg Aluminum Leg Aluminum Leg Aluminum Leg Aluminum Leg High-capacity Storage Unit Large Matter Pod Sensor Array Seismic Detector Seismic Detector Targeting Computer Light Assault Rifle Light Assault Rifle Mining Laser [Rating: 9] Favorites ----------- Power Ion Engine Engine Ion Engine Propulsion Aluminum Leg Leg Aluminum Leg Utility Seismic Detector Device Seismic Detector Storage Small Storage Unit Weapon Medium Laser Energy Gun Medium Laser Ballistic Gun Assault Rifle Build | -11 -10 -10 ------- Run | Yrd Mat Min Slots Evolved . | . . . Power . | . . . Propulsion . | . . . Utility . | . . . Weapon . | . . . Parts Attached 18 | 2 14 2 Power 7 | 1 5 1 Engine 7 | 1 5 1 Core . | . . . Reactor . | . . . Propulsion 8 | . 7 1 Treads . | . . . Leg 8 | . 7 1 Wheel . | . . . Hover . | . . . Flight . | . . . Utility 3 | 1 2 . Device 2 | 1 1 . Storage 1 | . 1 . Processor . | . . . Hackware . | . . . Protection . | . . . Artifact . | . . . Weapon . | . . . Energy Gun . | . . . Energy Cannon . | . . . Ballistic Gun . | . . . Ballistic Cannon . | . . . Launcher . | . . . Special Weapon . | . . . Impact Weapon . | . . . Slashing Weapon . | . . . Piercing Weapon . | . . . Special Melee Weapon . | . . . Unidentified Prototypes . | . . . Parts Lost 4 | . 4 . Power 2 | . 2 . Propulsion 2 | . 2 . Utility . | . . . Weapon . | . . . Highest Loss Streak 2 | . 2 . To Critical Strikes . | . . . Average Backups 11 | 3 10 18 Power 1 | 1 1 1 Propulsion 3 | 1 3 4 Utility 3 | . 2 6 Weapon 3 | 1 2 7 Tool/Special . | . . . Unused Backups 31 | 9 3 19 Power 2 | . 1 1 Propulsion 12 | 6 1 5 Utility 8 | 1 1 6 Weapon 9 | 2 . 7 Tool/Special . | . . . Average Slot Usage (%) 99 | . 99 100 Engine 13 | . 13 14 Leg 27 | . 27 28 Device 14 | . 14 14 Storage 14 | . 14 14 Energy Gun 14 | . 14 14 Ballistic Gun 14 | . 14 14 Peak Build Rating 9 | 7 9 9 Average Rating 7 | 6 7 9 On Entrance 7 | 6 7 9 Avg Prop Armor Cover (%) . | . . . Naked Turns . | . . . Heaviest Build 50 | 15 50 50 Greatest Support 20 | 20 20 20 Greatest Overweight (x) 2 | . 2 2 Average Overweight (x) . | . . 2 Largest Inventory Capacity 20 | 8 20 20 Average Capacity 13 | 8 12 20 Most Carried 20 | 6 20 20 Average Carried 11 | 2 10 18 Final Capacity 20 | 8 20 20 Final Carried 19 | 3 18 19 Class Distribution -------------------- 87% | Mutant 12% | Scavenger-Mutant Dominant Class ---------------- Mutant | -10/Materials Mutant | -10/Mines Resources | -11 -10 -10 ----------- Run | Yrd Mat Min Matter Collected 699 | 226 418 55 Remotely . | . . . Salvage Created 820 | 179 595 46 Parts 58 | 21 35 2 Haulers Intercepted . | . . . Recyclers Shooed 1 | . 1 . Parts Field Recycled . | . . . Retrieved Matter . | . . . Parts Self-Destructed . | . . . Prevented . | . . . Parts Restored . | . . . Kills | -11 -10 -10 ------- Run | Yrd Mat Min Combat Hostiles Destroyed 18 | . 17 1 Guns 18 | . 17 1 Classes Destroyed 5 | 2 3 . Builder 1 | . 1 . Tunneler 5 | 5 . . Recycler 1 | 1 . . Swarmer 6 | . 6 . Grunt 12 | . 11 1 Best Kill Streak 4 | 4 3 1 Combat Bots Only 3 | . 3 1 Max Kills in Single Turn 1 | 1 1 1 Gunslinging . | . . . Exploded . | . . . Melee . | . . . Uniques/NPCs Destroyed . | . . . Combat | -11 -10 -10 -------- Run | Yrd Mat Min Hostile Shots Fired 123 | . 105 18 Missed 35 | . 31 4 Hits 88 | . 74 14 Projectile 88 | . 74 14 Critical Strikes 3 | . 3 . Damage Taken 1019 | . 823 196 Core 255 | . 174 81 Absorbed by Shields . | . . . Core Remaining (%) 100 | 100 . . Volleys Fired 57 | 6 46 5 Largest 2 | 2 2 2 Hottest 70 | 70 70 70 Shots Fired 110 | 12 88 10 Gun 110 | 12 88 10 Cannon . | . . . Launcher . | . . . Special . | . . . Kinetic 57 | 6 46 5 Thermal 53 | 6 42 5 Explosive . | . . . Electromagnetic . | . . . Robot Hit Streak 9 | 6 9 8 Robot Miss Streak 2 | 1 2 1 Penetration Max . | . . . Secondary Targets 1 | . 1 . Max Gunslinging Chain 1 | . 1 . Shots Hit Robots 76 | 10 58 8 Core Hits 46 | 7 35 4 Critical Kills . | . . . Critical Parts Destroyed . | . . . Critical Strikes 3 | . 2 1 Burn 3 | . 2 1 Melee Attacks . | . . . Impact . | . . . Slashing . | . . . Piercing . | . . . Sneak Attacks . | . . . Combat Hostiles . | . . . Follow-up Attacks . | . . . Damage Inflicted 990 | 124 768 98 Guns 987 | 124 765 98 Cannons . | . . . Explosions . | . . . Melee . | . . . Ramming 3 | . 3 . Kinetic 495 | 62 385 48 Thermal 492 | 62 380 50 Explosive . | . . . Electromagnetic . | . . . Impact . | . . . Slashing . | . . . Piercing . | . . . Highest Corruption . | . . . Average Corruption . | . . . Corruption Purged . | . . . Corruption Blocked . | . . . Overload Shots . | . . . Overflow Damage . | . . . Projectiles . | . . . Explosions . | . . . Melee . | . . . Knockbacks . | . . . Impact . | . . . Kinetic . | . . . Secondary . | . . . Self-Inflicted Damage . | . . . Shots . | . . . Rammed . | . . . Targets Rammed 1 | . 1 . Kicked 1 | . 1 . Crushed . | . . . Highest Temperature 112 | 56 112 105 Average Temperature 31 | 27 27 64 Received Heat Transfer 513 | . 399 114 Siege Activations . | . . . Martial Activations . | . . . Shielding Activations . | . . . Robots Disrupted . | . . . Combat Hostiles . | . . . Robots Corrupted . | . . . Combat Hostiles . | . . . Parts Fried . | . . . Impact Corruptions . | . . . Robots Melted . | . . . Combat Hostiles . | . . . Parts Melted 4 | . 3 1 Heat Transferred 1665 | 185 1258 222 Parts Sabotaged . | . . . Parts Stolen . | . . . Parts Stripped . | . . . Power Chain Reactions . | . . . Alert | -11 -10 -10 ------- Run | Yrd Mat Min Maximum Alert Level . | . . . Low Security (%) 100 | 100 100 100 Level 1 . | . . . Level 2 . | . . . Level 3 . | . . . Level 4 . | . . . Level 5 . | . . . High Security . | . . . Max Security . | . . . Peak Influence 120 | 20 120 24 Initial 6 | . 6 4 Average 26 | 5 30 2 Influence Increases 541 | 30 491 20 Destroy 0b10 Robot/C 360 | . 340 20 Destroy 0b10 Robot/NC 35 | 30 5 . Destroy Leader 70 | . 70 . Disable Machine 15 | . 15 . Destroy Structure 1 | . 1 . Lose Combat Pursuer 60 | . 60 . Influence Decreases 541 | 20 488 33 Entered New Map 13 | . 4 9 Time Decay 488 | 20 444 24 Lost Part 40 | . 40 . Squads Dispatched 2 | . 2 . Investigation . | . . . Extermination . | . . . Reinforcement 2 | . 2 . Assault . | . . . Garrison . | . . . Intercept . | . . . Searches Triggered . | . . . Construction Impeded . | . . . Haulers Reinforced . | . . . Active Scanning Responses . | . . . Cargo Convoy Interrupts . | . . . Stealth | -11 -10 -10 --------- Run | Yrd Mat Min Distress Signals 2 | . 2 . Communications Jammed . | . . . Distress Signals . | . . . Times Spotted 40 | . 36 4 Peak Tracking Total 7 | . 7 2 Tactical Retreats 3 | . 3 . Traps | -11 -10 -10 ------- Run | Yrd Mat Min Traps Triggered . | . . . Indirectly . | . . . Trap Hack Attempts . | . . . Triggered . | . . . Disarmed . | . . . Reprogrammed . | . . . Reused . | . . . Traps Extracted . | . . . Installed . | . . . Triggered . | . . . Machines | -11 -10 -10 ---------- Run | Yrd Mat Min Machines Disabled 1 | . 1 . Max in Single Turn 1 | . 1 . Machines Repaired . | . . . Machines Dismantled . | . . . Machines Sabotaged . | . . . Overloaded Fab Kills . | . . . Hacking | -11 -10 -10 --------- Run | Yrd Mat Min Machines Accessed . | . . . Terminals . | . . . Fabricators . | . . . Repair Stations . | . . . Recycling Units . | . . . Scanalyzers . | . . . Garrison Access . | . . . Total Hacks . | . . . Successful . | . . . Failed . | . . . Catastrophic . | . . . Database Lockouts . | . . . Manual . | . . . Terminals . | . . . Fabricators . | . . . Repair Stations . | . . . Recycling Units . | . . . Scanalyzers . | . . . Garrison Access . | . . . Terminal Hacks . | . . . Fabricator Hacks . | . . . Repair Station Hacks . | . . . Recycling Unit Hacks . | . . . Scanalyzer . | . . . Garrison Access Hacks . | . . . Unauthorized Hacks . | . . . Terminals . | . . . Fabricators . | . . . Repair Stations . | . . . Recycling Units . | . . . Scanalyzers . | . . . Garrison Access . | . . . Data Cores Recovered . | . . . Used . | . . . Hacking Detections . | . . . Full Trace Events . | . . . Feedback Events . | . . . Feedback Blocked . | . . . Robot Schematics Acquired . | . . . Robots Built . | . . . Authchips . | . . . Time . | . . . Total Robot Build Rating . | . . . Part Schematics Acquired . | . . . Parts Built . | . . . Authchips . | . . . Time . | . . . Total Part Build Rating . | . . . Part Studies Acquired . | . . . Parts Repaired . | . . . Time . | . . . Parts Recycled . | . . . Recycled Matter . | . . . Retrieved Matter . | . . . Retrieved Components . | . . . Parts Scanalyzed . | . . . Part Schematics Acquired . | . . . Parts Damaged . | . . . Bothacking | -11 -10 -10 ------------ Run | Yrd Mat Min Used RIF Installer . | . . . Robots Hacked . | . . . Non-combat . | . . . Combat . | . . . Robot Hacks Applied . | . . . Relay Couplers Released . | . . . Fabnet Peak Effective % . | . . . Robots Rewired . | . . . Allies Hacked . | . . . Hacks Repelled . | . . . Allies | -11 -10 -10 -------- Run | Yrd Mat Min Total Allies . | . . . Largest Group . | . . . Highest-Rated Group . | . . . Highest-Rated Ally . | . . . Total Orders . | . . . Ally Attacks . | . . . Total Damage . | . . . Kills . | . . . Allies Corrupted . | . . . Allies Melted . | . . . Intel | -11 -10 -10 ------- Run | Yrd Mat Min Active Infowar (turns) 2270 | 61 1968 241 Seismic 2270 | 61 1968 241 Robot Analysis Total . | . . . Derelict Logs Recovered 1 | . . 1 Drone Launches . | . . . Drone Recoveries . | . . . Exploration | -11 -10 -10 ------------- Run | Yrd Mat Min Turns Passed 2280 | 71 1968 241 Spaces Moved 1126 | 18 1024 84 Core . | . . . Treads . | . . . Legs 1126 | 18 1024 84 Wheels . | . . . Hover . | . . . Flight . | . . . Fastest Speed 120 | 120 120 260 Average Speed 167 | 120 160 260 Slowest Speed 260 | 120 260 260 Overloaded Moves . | . . . Propulsion Burnouts . | . . . Robots Hopped . | . . . Potential Cave-ins . | . . . Cave-ins Triggered . | . . . Exploration Rate (%) 38 | 3 97 16 Regions Visited 2 Branch Regions 1 Pre-discovered Areas 1 | . . 1 Known Exits Taken . | . . . Unknown Exits Taken 2 | 1 1 . Scrap Searched . | . . . Spaces Dug . | . . . Terrain Destroyed . | . . . Melee . | . . . Projectile . | . . . AOE . | . . . Terrain Rammed . | . . . Walls Destroyed . | . . . Machines Disabled . | . . . Actions | -11 -10 -10 --------- Run | Yrd Mat Min Total 1413 | 56 1259 98 Wait 164 | 26 135 3 Move 1124 | 17 1023 84 Hop . | . . . Pick Up 28 | 1 25 2 Fast Attach 4 | 1 3 . Attach 2 | . 2 . Detach . | . . . Swap 14 | 1 11 2 Drop 19 | 4 13 2 Fire 57 | 6 46 5 Melee . | . . . Ram . | . . . Kick 1 | . 1 . Crush . | . . . Escape Stasis . | . . . Rewire . | . . . Trap . | . . . Miscellaneous . | . . . Route ------- -11/Scrapyard -10/Materials (discovered 5 exits: [*Mat x3] / [*Min x2]) -10/Mines History --------- Turn | Location | Event 8 | -11/Scrapyard | Discovered new exit (range 3) 72 | -11/Scrapyard | Entered Materials 141 | -10/Materials | Discovered new exit (range 5) 285 | -10/Materials | Discovered new exit (range 10) 304 | -10/Materials | Build established: Mutant 407 | -10/Materials | Core integrity fell below 50% 482 | -10/Materials | Discovered new exit (range 6) 918 | -10/Materials | Discovered new exit (range 16) 1077 | -10/Materials | Discovered new exit (range 4) 2040 | -10/Materials | Entered Mines 2047 | -10/Mines | Core integrity fell below 20% 2108 | -10/Mines | Met a Derelict bent on vengeance 2236 | -10/Mines | Learned location of Zion (-6) 2281 | -10/Mines | Destroyed by G-47 Trooper with Particle Gun Last Messages --------------- 01826_ Dropped Lgt. Nuclear Core. 01834_ R-06 Scavenger collects Aluminum Leg. 01979_ K-01 Serf cleans the Processing Tank. LOCATION=UNKNOWN GOAL=ESCAPE Something is scanning the area. 02046_ G-47 Trooper destroyed. 02049_ G-34 Mercenary suffers critical hit (Burn). 02052_ Heat Sink melted. 02052_ G-34 Mercenary destroyed. 02063_ Acquired 35 matter. 02078_ Acquired Aluminum Leg. 02079_ Dropped Aluminum Leg. 02083_ Acquired Ion Engine. 02084_ Dropped Ion Engine. 02085_ Acquired 14 matter. 02090_ Acquired 6 matter. 02201_ 8V-8CH(g): "VENGEANCE!" 02236_ Acquired derelict log, extracted data. World map updated: -6/Zion. Map ----- +----------------------------------------------------+ | | | | | | | | | ?????????????????????????????????????????????????? | | ?????????????????????????????????????????????????? | | ??????????????????????????????##?????????????????? | | ?????????????????????????????? ?????????????????? | | ??????????????????????????????" ?????????????????? | | ??????????????????????????????" #????????????????? | | ??????????????????????????????" ##???????????????? | | ?????????????????????????????? #???????????????? | | ??????????????????????????????# #?####??????????? | | ??????????????????????????????# ### ##?????????? | | ??????????????????????????????# ## ##????????? | | ?????????????????????????###### ## ####?????? | | ?????????????????????????# ## ##????? | | ?????????????????????????# ### """" #????? | | ?????????????????######### ######?# """" #????? | | ?????? ??????## ######## """" ##????? | | ????? ##### ###### ## #?????? | | ????? ##??## ## #?????? | | ?????????## gg##?## #### #?????? | | ??????????## ###g ##??# ###???? | | ???????????# ## ## ##???# #???? | | ???????????## ??## @ #### ##????#### #???? | | ????????????###????##########??####????????# ##### | | ???????????????????????????????????????????# | | ???????????????????????????????????????????####### | | ?????????????????????????????????????????????????? | | ?????????????????????????????????????????????????? | | ?????????????????????????????????????????????????? | | ?????????????????????????????????????????????????? | | ?????????????????????????????????????????????????? | | ?????????????????????????????????????????????????? | | ?????????????????????????????????????????????????? | | ?????????????????????????????????????????????????? | | ?????????????????????????????????????????????????? | | ?????????????????????????????????????????????????? | | ?????????????????????????????????????????????????? | | ?????????????????????????????????????????????????? | | ?????????????????????????????????????????????????? | | ?????????????????????????????????????????????????? | | ?????????????????????????????????????????????????? | | ?????????????????????????????????????????????????? | | ?????????????????????????????????????????????????? | | ?????????????????????????????????????????????????? | | ?????????????????????????????????????????????????? | | ?????????????????????????????????????????????????? | | ?????????????????????????????????????????????????? | +----------------------------------------------------+ Best States ------------- Heat Dissipation 25 Energy Generation 10 Energy Capacity 250 Matter Stores 300 Matter Capacity 300 Sight Range 16 Terrain Scan Density 10 Evasion (%) 55 Item Schematics ----------------- None Robot Schematics ------------------ None Fabricated ------------ Nothing Repaired ---------- Nothing Studied --------- None Alien Tech Used ----------------- None Achievements -------------- None Challenges ------------ None Game ------ Seed PrecisionShiftShell Manual? 0 Play Time 00:26:36 Cumulative 335.3 hours Start 2026.07.12 @ 18:45:21 End 2026.07.12 @ 19:15:21 Sessions 1 Manual Loads 0 Difficulty Rogue Special Mode None Game No. 113 Rogue 113 Adventurer 0 Explorer 0 Win Type - Total 15 Types 11/0/1/0/1/0/0/0/0/2 Lore% 59 Gallery% 50 Achievement% 45 Wizard Run 0 Options --------- Layout 0 ASCII 0 Keyboard 0 Movement Numpad Keybinds 0 Fullscreen 1 Font 20/SmallcapsGlow Map View 90x57 Zoom Use 0% Tactical HUD 1 Map Filters NONE Filters BRIGHTNESS(200) Steam 1 RUN: 3d7d822c-9a90-42d0-8e5f-63d0e049deb5